[Event "Titled Tuesday Blitz June 13 Late 2023"]
[White "Elaisaz"]
[Black "Bayo Milagro, Alvaro"]
[BlackFideId "22275240"]
[WhiteElo "2320"]
[BlackElo "2270"]
[Result "0-1"]
[Round "9"]
[TimeControl "180+2"]
[Date "2023.06.13"]
[WhiteClock "0:00:18"]
[BlackClock "0:00:40"]
[Board "46"]

1. d4 {[%clk 0:02:59]}  Nf6 {[%clk 0:02:59]} 2. Bf4 {[%clk 0:02:57]}  e6 {[%clk 0:02:58]} 3. e3 {[%clk 0:02:56]}  d5 {[%clk 0:02:57]} 4. Bd3 {[%clk 0:02:53]}  c5 {[%clk 0:02:57]} 5. c3 {[%clk 0:02:52]}  Nc6 {[%clk 0:02:58]} 6. Nf3 {[%clk 0:02:52]}  Bd6 {[%clk 0:02:58]} 7. Bg3 {[%clk 0:02:52]}  O-O {[%clk 0:02:58]} 8. Nbd2 {[%clk 0:02:52]}  b6 {[%clk 0:02:55]} 9. O-O {[%clk 0:02:51]}  Bb7 {[%clk 0:02:55]} 10. Ne5 {[%clk 0:02:51]}  Ne7 {[%clk 0:02:55]} 11. f4 {[%clk 0:02:50]}  Nf5 {[%clk 0:02:55]} 12. Qe2 {[%clk 0:02:30]}  Be7 {[%clk 0:02:49]} 13. Be1 {[%clk 0:02:20]}  Nd6 {[%clk 0:02:47]} 14. g4 {[%clk 0:02:19]}  Nfe4 {[%clk 0:02:46]} 15. g5 {[%clk 0:02:19]}  f6 {[%clk 0:02:32]} 16. Qh5 {[%clk 0:01:34]}  fxe5 {[%clk 0:02:26]} 17. dxe5 {[%clk 0:01:35]}  Nf5 {[%clk 0:02:22]} 18. Rf3 {[%clk 0:01:33]}  g6 {[%clk 0:02:12]} 19. Qg4 {[%clk 0:01:29]}  c4 {[%clk 0:02:07]} 20. Bc2 {[%clk 0:01:25]}  Bc5 {[%clk 0:02:07]} 21. Nxe4 {[%clk 0:01:11]}  dxe4 {[%clk 0:02:06]} 22. Rh3 {[%clk 0:01:09]}  Qe7 {[%clk 0:02:01]} 23. Bf2 {[%clk 0:01:07]}  Rad8 {[%clk 0:02:00]} 24. Qg2 {[%clk 0:01:01]}  Rd2 {[%clk 0:01:52]} 25. Bxe4 {[%clk 0:01:00]}  Nxe3 {[%clk 0:01:38]} 26. Qf3 {[%clk 0:00:41]}  Bxe4 {[%clk 0:01:31]} 27. Qxe4 {[%clk 0:00:40]}  Rxf2 {[%clk 0:01:27]} 28. Kxf2 {[%clk 0:00:40]}  Rxf4+ {[%clk 0:01:07]} 29. Qxf4 {[%clk 0:00:37]}  Nd5+ {[%clk 0:01:07]} 30. Kf3 {[%clk 0:00:37]}  Nxf4 {[%clk 0:01:07]} 31. Kxf4 {[%clk 0:00:38]}  Qf7+ {[%clk 0:01:06]} 32. Kg3 {[%clk 0:00:32]}  Qf2+ {[%clk 0:01:04]} 33. Kg4 {[%clk 0:00:32]}  Qf5+ {[%clk 0:01:02]} 34. Kg3 {[%clk 0:00:32]}  Qxg5+ {[%clk 0:00:52]} 35. Kf3 {[%clk 0:00:32]}  Qf5+ {[%clk 0:00:51]} 36. Kg2 {[%clk 0:00:30]}  Qc2+ {[%clk 0:00:47]} 37. Kg3 {[%clk 0:00:23]}  Qf2+ {[%clk 0:00:44]} 38. Kg4 {[%clk 0:00:23]}  Qf5+ {[%clk 0:00:44]} 39. Kg3 {[%clk 0:00:23]}  Bf2+ {[%clk 0:00:43]} 40. Kg2 {[%clk 0:00:22]}  Qg4+ {[%clk 0:00:43]} 41. Kxf2 {[%clk 0:00:22]}  Qxh3 {[%clk 0:00:43]} 42. Rd1 {[%clk 0:00:21]}  Qxh2+ {[%clk 0:00:43]} 43. Ke3 {[%clk 0:00:21]}  Qxe5+ {[%clk 0:00:43]} 44. Kf2 {[%clk 0:00:18]}  Qf4+ {[%clk 0:00:40]} 0-1


[Site "https://www.chess.com"]

[Event "Titled Tuesday Blitz June 13 Late 2023"]
[White "Vakhlamov, Igor L."]
[Black "Fantinel, Thibault"]
[WhiteFideId "24126748"]
[BlackFideId "663395"]
[WhiteElo "2407"]
[BlackElo "2316"]
[Result "1-0"]
[Round "9"]
[TimeControl "180+2"]
[Date "2023.06.13"]
[WhiteClock "0:00:04"]
[BlackClock "0:00:00"]
[Board "49"]

1. e4 {[%clk 0:02:50]}  c5 {[%clk 0:02:58]} 2. Nf3 {[%clk 0:02:50]}  e6 {[%clk 0:02:59]} 3. Nc3 {[%clk 0:02:49]}  Nc6 {[%clk 0:02:59]} 4. d4 {[%clk 0:02:49]}  cxd4 {[%clk 0:03:00]} 5. Nxd4 {[%clk 0:02:49]}  Qc7 {[%clk 0:03:01]} 6. Nxc6 {[%clk 0:02:49]}  bxc6 {[%clk 0:03:01]} 7. Qf3 {[%clk 0:02:50]}  d5 {[%clk 0:02:58]} 8. Bd3 {[%clk 0:02:44]}  Nf6 {[%clk 0:02:58]} 9. O-O {[%clk 0:02:41]}  Be7 {[%clk 0:02:53]} 10. Re1 {[%clk 0:02:41]}  O-O {[%clk 0:02:50]} 11. Qh3 {[%clk 0:02:39]}  e5 {[%clk 0:02:43]} 12. Qg3 {[%clk 0:02:27]}  d4 {[%clk 0:01:58]} 13. Ne2 {[%clk 0:02:26]}  c5 {[%clk 0:01:58]} 14. b3 {[%clk 0:02:23]}  Be6 {[%clk 0:01:53]} 15. h3 {[%clk 0:01:57]}  a5 {[%clk 0:01:43]} 16. f4 {[%clk 0:01:52]}  Nh5 {[%clk 0:01:35]} 17. Qf3 {[%clk 0:01:52]}  Nxf4 {[%clk 0:01:35]} 18. Nxf4 {[%clk 0:01:52]}  exf4 {[%clk 0:01:36]} 19. Bxf4 {[%clk 0:01:53]}  Qb6 {[%clk 0:01:20]} 20. e5 {[%clk 0:01:34]}  a4 {[%clk 0:01:11]} 21. Qg3 {[%clk 0:01:02]}  g6 {[%clk 0:01:00]} 22. h4 {[%clk 0:01:00]}  axb3 {[%clk 0:00:59]} 23. axb3 {[%clk 0:01:01]}  Bd5 {[%clk 0:00:25]} 24. h5 {[%clk 0:00:57]}  Qe6 {[%clk 0:00:25]} 25. Rf1 {[%clk 0:00:56]}  c4 {[%clk 0:00:20]} 26. bxc4 {[%clk 0:00:53]}  Bxc4 {[%clk 0:00:21]} 27. Bh6 {[%clk 0:00:53]}  Rxa1 {[%clk 0:00:12]} 28. Rxa1 {[%clk 0:00:53]}  Rc8 {[%clk 0:00:12]} 29. Ra7 {[%clk 0:00:45]}  Bxd3 {[%clk 0:00:11]} 30. cxd3 {[%clk 0:00:46]}  Bf8 {[%clk 0:00:06]} 31. Bxf8 {[%clk 0:00:39]}  Rxf8 {[%clk 0:00:07]} 32. Qf4 {[%clk 0:00:37]}  gxh5 {[%clk 0:00:03]} 33. Qxd4 {[%clk 0:00:35]}  Qg4 {[%clk 0:00:01]} 34. Ra4 {[%clk 0:00:21]}  Qd1+ {[%clk 0:00:01]} 35. Kh2 {[%clk 0:00:22]}  Qe2 {[%clk 0:00:02]} 36. Qe4 {[%clk 0:00:09]}  Qxe4 {[%clk 0:00:02]} 37. Rxe4 {[%clk 0:00:09]}  Rd8 {[%clk 0:00:02]} 38. d4 {[%clk 0:00:10]}  Kf8 {[%clk 0:00:03]} 39. Kh3 {[%clk 0:00:10]}  Ke7 {[%clk 0:00:04]} 40. Kh4 {[%clk 0:00:11]}  Ke6 {[%clk 0:00:04]} 41. Kxh5 {[%clk 0:00:11]}  f5 {[%clk 0:00:05]} 42. Rf4 {[%clk 0:00:08]}  Rg8 {[%clk 0:00:03]} 43. g4 {[%clk 0:00:09]}  fxg4 {[%clk 0:00:03]} 44. Rxg4 {[%clk 0:00:10]}  Rf8 {[%clk 0:00:03]} 45. Kh6 {[%clk 0:00:10]}  Kd5 {[%clk 0:00:03]} 46. Kxh7 {[%clk 0:00:10]}  Rf1 {[%clk 0:00:03]} 47. Kg6 {[%clk 0:00:10]}  Rf8 {[%clk 0:00:04]} 48. Kg5 {[%clk 0:00:11]}  Rf1 {[%clk 0:00:04]} 49. Rf4 {[%clk 0:00:11]}  Rg1+ {[%clk 0:00:05]} 50. Kf6 {[%clk 0:00:10]}  Rg8 {[%clk 0:00:06]} 51. Ke7 {[%clk 0:00:10]}  Rg7+ {[%clk 0:00:06]} 52. Kf8 {[%clk 0:00:09]}  Ra7 {[%clk 0:00:05]} 53. Ke8 {[%clk 0:00:07]}  Ra8+ {[%clk 0:00:05]} 54. Kd7 {[%clk 0:00:07]}  Ra7+ {[%clk 0:00:06]} 55. Kc8 {[%clk 0:00:07]}  Ra8+ {[%clk 0:00:07]} 56. Kb7 {[%clk 0:00:08]}  Re8 {[%clk 0:00:07]} 57. Kb6 {[%clk 0:00:08]}  Rb8+ {[%clk 0:00:07]} 58. Kc7 {[%clk 0:00:08]}  Rh8 {[%clk 0:00:07]} 59. Kd7 {[%clk 0:00:07]}  Rh7+ {[%clk 0:00:06]} 60. Ke8 {[%clk 0:00:08]}  Rh8+ {[%clk 0:00:05]} 61. Ke7 {[%clk 0:00:09]}  Rh7+ {[%clk 0:00:05]} 62. Rf7 {[%clk 0:00:10]}  Rh5 {[%clk 0:00:06]} 63. e6 {[%clk 0:00:09]}  Kxd4 {[%clk 0:00:06]} 64. Ke8 {[%clk 0:00:07]}  Ra5 {[%clk 0:00:05]} 65. e7 {[%clk 0:00:06]}  Ke5 {[%clk 0:00:05]} 66. Rh7 {[%clk 0:00:04]}  Ke6 {[%clk 0:00:00]} 67. Rh6+ {[%clk 0:00:04]} 1-0


[Site "https://www.chess.com"]

[Event "Titled Tuesday Blitz June 13 Late 2023"]
[White "Vaglio Munoz, Jaime"]
[Black "Kuznetsov, Felix"]
[WhiteFideId "6500145"]
[BlackFideId "34147990"]
[WhiteElo "2199"]
[BlackElo "2281"]
[Result "0-1"]
[Round "9"]
[TimeControl "180+2"]
[Date "2023.06.13"]
[WhiteClock "0:00:11"]
[BlackClock "0:00:43"]
[Board "61"]

1. d4 {[%clk 0:03:00]}  Nf6 {[%clk 0:02:59]} 2. Nf3 {[%clk 0:02:56]}  e6 {[%clk 0:02:59]} 3. e3 {[%clk 0:02:52]}  b6 {[%clk 0:02:59]} 4. Bd3 {[%clk 0:02:52]}  Bb7 {[%clk 0:02:59]} 5. O-O {[%clk 0:02:53]}  Be7 {[%clk 0:02:59]} 6. b3 {[%clk 0:02:53]}  O-O {[%clk 0:02:59]} 7. Bb2 {[%clk 0:02:53]}  c5 {[%clk 0:02:56]} 8. Qe2 {[%clk 0:02:51]}  d5 {[%clk 0:02:54]} 9. Nbd2 {[%clk 0:02:46]}  Nc6 {[%clk 0:02:54]} 10. a3 {[%clk 0:02:46]}  Qc7 {[%clk 0:02:51]} 11. Ne5 {[%clk 0:02:36]}  Nxe5 {[%clk 0:02:51]} 12. dxe5 {[%clk 0:02:36]}  Nd7 {[%clk 0:02:52]} 13. f4 {[%clk 0:02:36]}  g6 {[%clk 0:02:49]} 14. c4 {[%clk 0:02:34]}  Rad8 {[%clk 0:02:27]} 15. Rad1 {[%clk 0:02:30]}  d4 {[%clk 0:02:20]} 16. Ne4 {[%clk 0:02:27]}  Bc6 {[%clk 0:02:10]} 17. exd4 {[%clk 0:02:24]}  cxd4 {[%clk 0:02:08]} 18. b4 {[%clk 0:02:25]}  a5 {[%clk 0:01:56]} 19. Qd2 {[%clk 0:01:44]}  axb4 {[%clk 0:01:50]} 20. axb4 {[%clk 0:01:45]}  Bxe4 {[%clk 0:01:41]} 21. Bxe4 {[%clk 0:01:45]}  Qxc4 {[%clk 0:01:42]} 22. Qxd4 {[%clk 0:01:33]}  Qxb4 {[%clk 0:01:41]} 23. Qxb4 {[%clk 0:01:29]}  Bxb4 {[%clk 0:01:42]} 24. Bc6 {[%clk 0:01:14]}  Nc5 {[%clk 0:01:38]} 25. Bd4 {[%clk 0:01:09]}  Rc8 {[%clk 0:01:32]} 26. Bb5 {[%clk 0:01:03]}  Rfd8 {[%clk 0:01:30]} 27. Be3 {[%clk 0:01:01]}  Ba5 {[%clk 0:01:24]} 28. Bf2 {[%clk 0:00:58]}  Ne4 {[%clk 0:01:23]} 29. Bh4 {[%clk 0:00:58]}  Rxd1 {[%clk 0:01:19]} 30. Rxd1 {[%clk 0:00:58]}  Nc3 {[%clk 0:01:20]} 31. Bd7 {[%clk 0:00:52]}  Nxd1 {[%clk 0:01:10]} 32. Bxc8 {[%clk 0:00:52]}  b5 {[%clk 0:01:11]} 33. Kf1 {[%clk 0:00:45]}  b4 {[%clk 0:01:10]} 34. Ke2 {[%clk 0:00:45]}  Nc3+ {[%clk 0:01:06]} 35. Kd3 {[%clk 0:00:46]}  Nd5 {[%clk 0:01:05]} 36. g3 {[%clk 0:00:38]}  b3 {[%clk 0:00:59]} 37. Bb7 {[%clk 0:00:34]}  Nc3 {[%clk 0:00:46]} 38. Kd2 {[%clk 0:00:15]}  b2 {[%clk 0:00:45]} 39. Be4 {[%clk 0:00:14]}  Nxe4+ {[%clk 0:00:45]} 40. Kc2 {[%clk 0:00:15]}  Bc3 {[%clk 0:00:45]} 41. Be7 {[%clk 0:00:14]}  Nd2 {[%clk 0:00:45]} 42. Bb4 {[%clk 0:00:11]}  b1=Q+ {[%clk 0:00:43]} 0-1


[Site "https://www.chess.com"]

[Event "Titled Tuesday Blitz June 13 Late 2023"]
[White "Papasimakopoulos, Alexandros"]
[Black "marik_spb"]
[WhiteFideId "4244125"]
[WhiteElo "2359"]
[BlackElo "2481"]
[Result "0-1"]
[Round "9"]
[TimeControl "180+2"]
[Date "2023.06.13"]
[WhiteClock "0:00:00"]
[BlackClock "0:00:05"]
[Board "63"]

1. d4 {[%clk 0:03:00]}  Nf6 {[%clk 0:01:28]} 2. c4 {[%clk 0:02:50]}  e6 {[%clk 0:01:28]} 3. Nc3 {[%clk 0:02:49]}  Bb4 {[%clk 0:01:28]} 4. Qc2 {[%clk 0:02:49]}  O-O {[%clk 0:01:28]} 5. a3 {[%clk 0:02:43]}  Bxc3+ {[%clk 0:01:27]} 6. Qxc3 {[%clk 0:02:41]}  d5 {[%clk 0:01:28]} 7. Nf3 {[%clk 0:02:40]}  c5 {[%clk 0:01:26]} 8. cxd5 {[%clk 0:02:38]}  cxd4 {[%clk 0:01:25]} 9. Qxd4 {[%clk 0:02:35]}  Qxd5 {[%clk 0:01:24]} 10. Qxd5 {[%clk 0:02:31]}  Nxd5 {[%clk 0:01:25]} 11. e4 {[%clk 0:02:31]}  Nf6 {[%clk 0:01:25]} 12. Bd3 {[%clk 0:02:26]}  b6 {[%clk 0:01:25]} 13. Ke2 {[%clk 0:02:23]}  Ba6 {[%clk 0:01:25]} 14. Bxa6 {[%clk 0:02:22]}  Nxa6 {[%clk 0:01:26]} 15. Nd2 {[%clk 0:01:55]}  Nc5 {[%clk 0:01:23]} 16. f3 {[%clk 0:01:50]}  Rfd8 {[%clk 0:01:23]} 17. Rd1 {[%clk 0:01:47]}  Nd3 {[%clk 0:01:23]} 18. Nc4 {[%clk 0:01:45]}  Nxc1+ {[%clk 0:01:22]} 19. Raxc1 {[%clk 0:01:45]}  Rxd1 {[%clk 0:01:14]} 20. Rxd1 {[%clk 0:01:44]}  Rc8 {[%clk 0:01:12]} 21. Ne5 {[%clk 0:01:42]}  Kf8 {[%clk 0:01:09]} 22. Rd2 {[%clk 0:01:33]}  Ke7 {[%clk 0:01:08]} 23. h4 {[%clk 0:01:33]}  Rc7 {[%clk 0:01:07]} 24. g4 {[%clk 0:01:29]}  Nd7 {[%clk 0:01:05]} 25. Nd3 {[%clk 0:01:22]}  f6 {[%clk 0:01:03]} 26. f4 {[%clk 0:01:20]}  Rc4 {[%clk 0:00:53]} 27. Ke3 {[%clk 0:01:17]}  Nc5 {[%clk 0:00:53]} 28. Nxc5 {[%clk 0:01:16]}  Rxc5 {[%clk 0:00:54]} 29. f5 {[%clk 0:01:16]}  e5 {[%clk 0:00:51]} 30. g5 {[%clk 0:01:14]}  Rc1 {[%clk 0:00:47]} 31. gxf6+ {[%clk 0:01:06]}  gxf6 {[%clk 0:00:48]} 32. Kf3 {[%clk 0:00:58]}  a5 {[%clk 0:00:41]} 33. h5 {[%clk 0:00:51]}  Rh1 {[%clk 0:00:34]} 34. Rg2 {[%clk 0:00:50]}  Rxh5 {[%clk 0:00:32]} 35. Rg7+ {[%clk 0:00:50]}  Kd6 {[%clk 0:00:32]} 36. Rf7 {[%clk 0:00:48]}  Rh6 {[%clk 0:00:32]} 37. Ke3 {[%clk 0:00:31]}  Kc5 {[%clk 0:00:32]} 38. Kd3 {[%clk 0:00:31]}  Rh3+ {[%clk 0:00:24]} 39. Kd2 {[%clk 0:00:31]}  Kd4 {[%clk 0:00:17]} 40. Rxf6 {[%clk 0:00:31]}  b5 {[%clk 0:00:14]} 41. Rb6 {[%clk 0:00:29]}  Rb3 {[%clk 0:00:08]} 42. Kc2 {[%clk 0:00:29]}  a4 {[%clk 0:00:09]} 43. f6 {[%clk 0:00:29]}  Kxe4 {[%clk 0:00:09]} 44. f7 {[%clk 0:00:22]}  Rf3 {[%clk 0:00:09]} 45. Rxb5 {[%clk 0:00:23]}  Rxf7 {[%clk 0:00:09]} 46. Rb4+ {[%clk 0:00:23]}  Kf3 {[%clk 0:00:08]} 47. Rxa4 {[%clk 0:00:14]}  e4 {[%clk 0:00:08]} 48. Ra8 {[%clk 0:00:08]}  e3 {[%clk 0:00:06]} 49. Kd1 {[%clk 0:00:09]}  Kf2 {[%clk 0:00:06]} 50. Re8 {[%clk 0:00:03]}  Rd7+ {[%clk 0:00:06]} 51. Kc2 {[%clk 0:00:00]}  e2 {[%clk 0:00:05]} 0-1


[Site "https://www.chess.com"]

[Event "Titled Tuesday Blitz June 13 Late 2023"]
[White "Arabidze, Meri"]
[Black "Papayan, Oleg"]
[WhiteFideId "13604040"]
[BlackFideId "4193911"]
[WhiteElo "2405"]
[BlackElo "2167"]
[Result "1-0"]
[Round "9"]
[TimeControl "180+2"]
[Date "2023.06.13"]
[WhiteClock "0:00:11"]
[BlackClock "0:00:00"]
[Board "66"]

1. d4 {[%clk 0:02:56]}  Nf6 {[%clk 0:03:00]} 2. c4 {[%clk 0:02:56]}  e6 {[%clk 0:03:00]} 3. Nf3 {[%clk 0:02:56]}  d5 {[%clk 0:03:00]} 4. Bg5 {[%clk 0:02:56]}  dxc4 {[%clk 0:02:59]} 5. Qa4+ {[%clk 0:02:51]}  Nbd7 {[%clk 0:02:57]} 6. Qxc4 {[%clk 0:02:52]}  h6 {[%clk 0:02:54]} 7. Bh4 {[%clk 0:02:51]}  a6 {[%clk 0:02:49]} 8. Nc3 {[%clk 0:02:50]}  b5 {[%clk 0:02:48]} 9. Qd3 {[%clk 0:02:50]}  c5 {[%clk 0:02:43]} 10. e4 {[%clk 0:02:49]}  cxd4 {[%clk 0:02:39]} 11. Nxd4 {[%clk 0:02:48]}  Ne5 {[%clk 0:02:34]} 12. Qe3 {[%clk 0:02:23]}  b4 {[%clk 0:02:26]} 13. Na4 {[%clk 0:02:19]}  Bd7 {[%clk 0:02:01]} 14. f4 {[%clk 0:01:49]}  Neg4 {[%clk 0:01:38]} 15. Qb3 {[%clk 0:01:41]}  Qa5 {[%clk 0:01:30]} 16. Qf3 {[%clk 0:01:01]}  Bxa4 {[%clk 0:00:54]} 17. b3 {[%clk 0:01:01]}  Bc5 {[%clk 0:00:45]} 18. Rd1 {[%clk 0:00:49]}  Rd8 {[%clk 0:00:27]} 19. Nc2 {[%clk 0:00:17]}  Rxd1+ {[%clk 0:00:18]} 20. Qxd1 {[%clk 0:00:16]}  Bc6 {[%clk 0:00:16]} 21. e5 {[%clk 0:00:16]}  Nd5 {[%clk 0:00:11]} 22. Qxg4 {[%clk 0:00:16]}  O-O {[%clk 0:00:07]} 23. Bf6 {[%clk 0:00:14]}  Nxf6 {[%clk 0:00:07]} 24. exf6 {[%clk 0:00:15]}  g6 {[%clk 0:00:08]} 25. Bd3 {[%clk 0:00:15]}  Kh7 {[%clk 0:00:05]} 26. h4 {[%clk 0:00:15]}  Bb5 {[%clk 0:00:02]} 27. Be4 {[%clk 0:00:12]}  Rd8 {[%clk 0:00:01]} 28. h5 {[%clk 0:00:11]}  Qxa2 {[%clk 0:00:00]} 29. hxg6+ {[%clk 0:00:11]} 1-0


[Site "https://www.chess.com"]

[Event "Titled Tuesday Blitz June 13 Late 2023"]
[White "Korkmaz, Necmettin"]
[Black "Womacka, Mathias"]
[WhiteFideId "6303285"]
[BlackFideId "4611390"]
[WhiteElo "2097"]
[BlackElo "2377"]
[Result "1-0"]
[Round "9"]
[TimeControl "180+2"]
[Date "2023.06.13"]
[WhiteClock "0:00:22"]
[BlackClock "0:00:18"]
[Board "68"]

1. e4 {[%clk 0:02:31]}  c5 {[%clk 0:02:59]} 2. Nc3 {[%clk 0:02:31]}  Nc6 {[%clk 0:02:39]} 3. f4 {[%clk 0:02:31]}  g6 {[%clk 0:02:38]} 4. Nf3 {[%clk 0:02:31]}  Bg7 {[%clk 0:02:38]} 5. Bb5 {[%clk 0:02:31]}  Nd4 {[%clk 0:02:38]} 6. O-O {[%clk 0:02:31]}  Nxb5 {[%clk 0:02:37]} 7. Nxb5 {[%clk 0:02:32]}  d5 {[%clk 0:02:34]} 8. exd5 {[%clk 0:02:32]}  a6 {[%clk 0:02:33]} 9. Nc3 {[%clk 0:02:32]}  Nf6 {[%clk 0:02:33]} 10. d4 {[%clk 0:02:31]}  c4 {[%clk 0:02:31]} 11. Qe2 {[%clk 0:02:30]}  b5 {[%clk 0:02:31]} 12. Re1 {[%clk 0:02:28]}  O-O {[%clk 0:02:26]} 13. Qxe7 {[%clk 0:02:26]}  Qxe7 {[%clk 0:02:25]} 14. Rxe7 {[%clk 0:02:26]}  b4 {[%clk 0:02:26]} 15. Na4 {[%clk 0:02:19]}  Nxd5 {[%clk 0:02:26]} 16. Re1 {[%clk 0:02:17]}  Bf5 {[%clk 0:02:22]} 17. c3 {[%clk 0:02:14]}  bxc3 {[%clk 0:02:14]} 18. bxc3 {[%clk 0:02:11]}  Bc2 {[%clk 0:02:13]} 19. Nb2 {[%clk 0:02:02]}  Nxc3 {[%clk 0:02:09]} 20. Nxc4 {[%clk 0:01:58]}  Rfd8 {[%clk 0:01:49]} 21. Nce5 {[%clk 0:01:42]}  Bf5 {[%clk 0:01:34]} 22. Nc6 {[%clk 0:01:26]}  Re8 {[%clk 0:01:17]} 23. Ne7+ {[%clk 0:01:26]}  Kh8 {[%clk 0:01:10]} 24. Nxf5 {[%clk 0:01:25]}  Rxe1+ {[%clk 0:01:08]} 25. Nxe1 {[%clk 0:01:25]}  gxf5 {[%clk 0:01:08]} 26. Nf3 {[%clk 0:01:24]}  Ne2+ {[%clk 0:01:08]} 27. Kf2 {[%clk 0:01:24]}  Nxd4 {[%clk 0:01:08]} 28. Bb2 {[%clk 0:01:24]}  Nxf3 {[%clk 0:01:06]} 29. Bxg7+ {[%clk 0:01:24]}  Kxg7 {[%clk 0:01:07]} 30. Kxf3 {[%clk 0:01:25]}  Rc8 {[%clk 0:01:05]} 31. Re1 {[%clk 0:01:23]}  Rc2 {[%clk 0:01:00]} 32. Re2 {[%clk 0:01:23]}  Rxe2 {[%clk 0:00:58]} 33. Kxe2 {[%clk 0:01:23]}  Kf6 {[%clk 0:00:58]} 34. Ke3 {[%clk 0:01:24]}  Ke6 {[%clk 0:00:58]} 35. Kd4 {[%clk 0:01:24]}  Kd6 {[%clk 0:00:59]} 36. Kc4 {[%clk 0:01:24]}  Kc6 {[%clk 0:00:59]} 37. Kb4 {[%clk 0:01:19]}  Kb6 {[%clk 0:00:53]} 38. a3 {[%clk 0:01:16]}  f6 {[%clk 0:00:50]} 39. a4 {[%clk 0:01:13]}  Kc6 {[%clk 0:00:48]} 40. Kc4 {[%clk 0:01:13]}  Kd6 {[%clk 0:00:48]} 41. Kb4 {[%clk 0:01:06]}  Kc6 {[%clk 0:00:48]} 42. Kc4 {[%clk 0:01:02]}  Kd6 {[%clk 0:00:47]} 43. g3 {[%clk 0:00:58]}  Kc6 {[%clk 0:00:44]} 44. Kb4 {[%clk 0:00:57]}  Kb6 {[%clk 0:00:42]} 45. h3 {[%clk 0:00:54]}  Kc6 {[%clk 0:00:41]} 46. g4 {[%clk 0:00:49]}  fxg4 {[%clk 0:00:41]} 47. hxg4 {[%clk 0:00:50]}  Kb6 {[%clk 0:00:33]} 48. Kc4 {[%clk 0:00:49]}  Kc6 {[%clk 0:00:33]} 49. Kd4 {[%clk 0:00:50]}  Kd6 {[%clk 0:00:33]} 50. Ke4 {[%clk 0:00:50]}  Ke6 {[%clk 0:00:33]} 51. Kd4 {[%clk 0:00:39]}  Kd6 {[%clk 0:00:33]} 52. Kc4 {[%clk 0:00:34]}  Kc6 {[%clk 0:00:33]} 53. Kb4 {[%clk 0:00:28]}  Kb6 {[%clk 0:00:33]} 54. g5 {[%clk 0:00:26]}  fxg5 {[%clk 0:00:32]} 55. fxg5 {[%clk 0:00:27]}  Kc6 {[%clk 0:00:32]} 56. Ka5 {[%clk 0:00:27]}  Kb7 {[%clk 0:00:32]} 57. Kb4 {[%clk 0:00:27]}  Kb6 {[%clk 0:00:30]} 58. a5+ {[%clk 0:00:25]}  Kc6 {[%clk 0:00:30]} 59. Kc4 {[%clk 0:00:26]}  Kd6 {[%clk 0:00:30]} 60. Kd4 {[%clk 0:00:26]}  Kc6 {[%clk 0:00:24]} 61. Ke5 {[%clk 0:00:19]}  Kb5 {[%clk 0:00:24]} 62. Kf6 {[%clk 0:00:20]}  Kxa5 {[%clk 0:00:24]} 63. Kg7 {[%clk 0:00:21]}  Kb4 {[%clk 0:00:24]} 64. Kxh7 {[%clk 0:00:21]}  a5 {[%clk 0:00:24]} 65. g6 {[%clk 0:00:22]}  a4 {[%clk 0:00:25]} 66. g7 {[%clk 0:00:23]}  a3 {[%clk 0:00:24]} 67. g8=Q {[%clk 0:00:23]}  Kc3 {[%clk 0:00:24]} 68. Qg7+ {[%clk 0:00:23]}  Kc2 {[%clk 0:00:23]} 69. Qa1 {[%clk 0:00:24]}  Kb3 {[%clk 0:00:23]} 70. Kg6 {[%clk 0:00:23]}  a2 {[%clk 0:00:22]} 71. Kf5 {[%clk 0:00:24]}  Ka3 {[%clk 0:00:23]} 72. Ke5 {[%clk 0:00:23]}  Kb3 {[%clk 0:00:24]} 73. Kd5 {[%clk 0:00:22]}  Ka3 {[%clk 0:00:18]} 74. Kc4 {[%clk 0:00:22]} 1-0


[Site "https://www.chess.com"]

[Event "Titled Tuesday Blitz June 13 Late 2023"]
[White "Yolosz"]
[Black "Sadovsky, Artem"]
[BlackFideId "4155840"]
[WhiteElo "2438"]
[BlackElo "2314"]
[Result "0-1"]
[Round "9"]
[TimeControl "180+2"]
[Date "2023.06.13"]
[WhiteClock "0:00:00"]
[BlackClock "0:00:54"]
[Board "69"]

1. d4 {[%clk 0:02:40]}  g6 {[%clk 0:02:59]} 2. Bf4 {[%clk 0:02:40]}  Bg7 {[%clk 0:02:55]} 3. e3 {[%clk 0:02:39]}  d6 {[%clk 0:02:45]} 4. Nc3 {[%clk 0:02:36]}  e5 {[%clk 0:02:43]} 5. dxe5 {[%clk 0:02:35]}  dxe5 {[%clk 0:02:44]} 6. Qxd8+ {[%clk 0:02:34]}  Kxd8 {[%clk 0:02:45]} 7. O-O-O+ {[%clk 0:02:33]}  Nd7 {[%clk 0:02:46]} 8. Bg3 {[%clk 0:02:28]}  c6 {[%clk 0:02:44]} 9. Bc4 {[%clk 0:02:27]}  f6 {[%clk 0:02:44]} 10. f4 {[%clk 0:02:18]}  Ke7 {[%clk 0:02:41]} 11. Nf3 {[%clk 0:02:10]}  b5 {[%clk 0:02:39]} 12. Bb3 {[%clk 0:02:04]}  a5 {[%clk 0:02:08]} 13. a4 {[%clk 0:01:56]}  b4 {[%clk 0:02:01]} 14. Ne4 {[%clk 0:01:19]}  f5 {[%clk 0:02:01]} 15. Bh4+ {[%clk 0:01:16]}  Ngf6 {[%clk 0:01:59]} 16. fxe5 {[%clk 0:01:06]}  fxe4 {[%clk 0:01:58]} 17. exf6+ {[%clk 0:01:04]}  Bxf6 {[%clk 0:01:57]} 18. Bxf6+ {[%clk 0:01:02]}  Nxf6 {[%clk 0:01:52]} 19. Ne5 {[%clk 0:00:54]}  Bb7 {[%clk 0:01:47]} 20. Rhf1 {[%clk 0:00:50]}  Rad8 {[%clk 0:01:44]} 21. Nf7 {[%clk 0:00:30]}  Rxd1+ {[%clk 0:01:43]} 22. Rxd1 {[%clk 0:00:28]}  Rf8 {[%clk 0:01:37]} 23. Nd6 {[%clk 0:00:19]}  Ba6 {[%clk 0:01:38]} 24. Rd4 {[%clk 0:00:18]}  Rd8 {[%clk 0:01:30]} 25. Nf7 {[%clk 0:00:04]}  Rxd4 {[%clk 0:01:29]} 26. exd4 {[%clk 0:00:05]}  e3 {[%clk 0:01:23]} 27. Kd1 {[%clk 0:00:05]}  Ne4 {[%clk 0:01:03]} 28. Ne5 {[%clk 0:00:04]}  Kd6 {[%clk 0:00:54]} 29. Ng4 {[%clk 0:00:00]}  Nf2+ {[%clk 0:00:54]} 0-1


[Site "https://www.chess.com"]